fUSD/lending_fUSD_20241003
["ID","MTS","AMOUNT","RATE_DAILY","PERIOD"]
[339770836,1727975441863,-245.61,0.00024658,4]
[339770837,1727975441873,-200.0,0.000247,10]
[339770838,1727975441882,-232.92752689,0.000247,2]
[339770839,1727975441892,-500.0,0.00024707,2]
[339770840,1727975441901,-201.787238,0.00024707,120]
[339770841,1727975441911,-500.0,0.00024715,2]
[339770842,1727975441922,-500.0,0.00024724,2]
[339770843,1727975441931,-500.0,0.00024733,2]
[339770844,1727975441941,-500.0,0.00024742,2]
[339770845,1727975441950,-500.0,0.00024751,2]
[339770846,1727975441960,-500.0,0.00024759,2]
[339770847,1727975441969,-500.0,0.00024768,2]
[339770848,1727975441979,-500.0,0.00024777,2]
[339770849,1727975441989,-500.0,0.00024777,2]
[339770850,1727975441999,-500.0,0.00024785,2]
[339770851,1727975442008,-500.0,0.00024786,2]
[339770852,1727975442018,-500.0,0.00024794,2]
[339770853,1727975442028,-500.0,0.00024795,2]
[339770854,1727975442038,-372.27,0.000248,2]
[339770855,1727975442047,-500.0,0.00024803,2]
[339770856,1727975442057,-500.0,0.00024803,2]
[339770857,1727975442066,-500.0,0.00024812,2]
[339770858,1727975442076,-500.0,0.00024812,2]
[339770859,1727975442085,-500.0,0.00024821,2]
[339770860,1727975442095,-500.0,0.00024821,2]
[339770861,1727975442105,-500.0,0.00024829,2]
[339770862,1727975442114,-500.0,0.0002483,2]
[339770863,1727975442126,-500.0,0.00024838,2]
[339770864,1727975442135,-500.0,0.00024839,2]
[339770865,1727975442144,-500.0,0.00024842,2]
[339770866,1727975442153,-500.0,0.00024847,2]
[339770867,1727975442162,-500.0,0.00024847,2]
[339770868,1727975442175,-500.0,0.0002485,2]
[339770869,1727975442184,-500.0,0.00024856,2]
[339770870,1727975442196,-500.0,0.00024856,2]
[339770871,1727975442206,-500.0,0.00024859,2]
[339770872,1727975442215,-500.0,0.00024865,2]
[339770873,1727975442224,-500.0,0.00024865,2]
[339770874,1727975442233,-500.0,0.00024868,2]
[339770875,1727975442242,-500.0,0.00024873,2]
[339770876,1727975442251,-500.0,0.00024874,2]
[339770877,1727975442260,-500.0,0.00024877,2]
[339770878,1727975442269,-500.0,0.00024882,2]
[339770879,1727975442278,-500.0,0.00024883,2]
[339770880,1727975442288,-500.0,0.00024886,2]
[339770881,1727975442297,-500.0,0.00024891,2]
[339770882,1727975442306,-500.0,0.00024891,2]
[339770883,1727975442315,-500.0,0.00024894,2]
[339770884,1727975442325,-1000.0,0.00024899,2]
[339770885,1727975442334,-500.0,0.000249,2]
[339770886,1727975442344,-15172.37343693,0.000249,2]
[339770887,1727975442353,-500.0,0.000249,2]
[339770888,1727975442363,-500.0,0.00024903,2]
[339770889,1727975442372,-500.0,0.00024909,2]
[339770890,1727975442381,-500.0,0.00024909,2]
[339770891,1727975442390,-500.0,0.00024912,2]
[339770892,1727975442400,-500.0,0.00024917,2]
[339770893,1727975442409,-500.0,0.00024918,2]
[339770894,1727975442421,-500.0,0.00024921,2]
[339770895,1727975442431,-500.0,0.00024926,2]
[339770896,1727975442440,-500.0,0.00024927,2]
[339770897,1727975442449,-500.0,0.0002493,2]
[339770898,1727975442458,-500.0,0.00024932,2]
[339770899,1727975442467,-500.0,0.00024935,2]
[339770900,1727975442476,-500.0,0.00024935,2]
[339770902,1727975442486,-500.0,0.00024938,2]
[339770903,1727975442495,-500.0,0.0002494,2]
[339770904,1727975442504,-500.0,0.00024944,2]
[339770905,1727975442514,-500.0,0.00024944,2]
[339770906,1727975442523,-500.0,0.00024947,2]
[339770907,1727975442532,-500.0,0.00024949,2]
[339770908,1727975442541,-500.0,0.00024953,2]
[339770909,1727975442550,-500.0,0.00024953,2]
[339770910,1727975442560,-500.0,0.00024956,2]
[339770911,1727975442569,-500.0,0.00024958,2]
[339770912,1727975442578,-500.0,0.00024961,2]
[339770913,1727975442588,-500.0,0.00024962,2]
[339770914,1727975442597,-500.0,0.00024965,2]
[339770916,1727975442606,-500.0,0.00024967,2]
[339770918,1727975442616,-500.0,0.0002497,2]
[339770921,1727975442625,-500.0,0.00024971,2]
[339770923,1727975442635,-500.0,0.00024974,2]
[339770925,1727975442645,-500.0,0.00024976,2]
[339770927,1727975442655,-500.0,0.00024979,2]
[339770930,1727975442664,-500.0,0.00024979,2]
[339770934,1727975442677,-500.0,0.00024982,2]
[339770936,1727975442686,-500.0,0.00024984,2]
[339770939,1727975442696,-500.0,0.00024988,2]
[339770943,1727975442706,-500.0,0.00024988,2]
[339770947,1727975442715,-500.0,0.00024991,2]
[339770951,1727975442724,-500.0,0.00024993,2]
[339770952,1727975442734,-500.0,0.00024997,2]
[339770953,1727975442743,-500.0,0.00024997,2]
[339770954,1727975442753,-500.0,0.00025,2]
[339770955,1727975442763,-250.0,0.00025,2]
[339770956,1727975442772,-1383.33496738,0.00025,2]
[339770957,1727975442992,-200.0,0.00022573,2]
[339770958,1727975443001,-200.0,0.00024625,2]
[339770959,1727975443010,-2311.97023703,0.00025,2]
[339770960,1727975443028,-35216.98960605,0.00025,2]
[339770961,1727975443037,-2881.01322954,0.00025,2]
[339770962,1727975443046,-327.31112911,0.00025,2]
[339770963,1727975443056,-450.0,0.00025,30]
[339770964,1727975443065,-150.44588979,0.00025,120]
[339770965,1727975443074,-150.0,0.00025,13]
[339770966,1727975443083,-500.0,0.00025002,2]
[339770967,1727975443093,-500.0,0.00025005,2]
[339770968,1727975443102,-3202.5457896,0.000251,2]
[339770969,1727975443111,-504.05,0.00025205,2]
[339770971,1727975443123,-3000.0,0.00025359,2]
[339770972,1727975443134,-3000.0,0.00025359,2]
[339770973,1727975443143,-3000.0,0.00025359,2]
[339770974,1727975443152,-3000.0,0.00025359,2]
[339770975,1727975443162,-3000.0,0.00025359,2]
[339770976,1727975443172,-1097.95,0.00025359,2]
[339770977,1727975443182,-178.0,0.00025373,2]
[339770978,1727975443192,-152.0,0.00025404,7]
[339770979,1727975443201,-2500.0,0.00025463,7]
[339770980,1727975443211,-150.0,0.000255,13]
[339770981,1727975443221,-217.49,0.00025548,2]
[339770982,1727975443230,-151.0,0.00025559,2]
[339770983,1727975443239,-200.0,0.000257,11]
[339770984,1727975443249,-250.0,0.00026,2]
[339770985,1727975443258,-4281.44607185,0.00026,2]
[339770986,1727975443268,-4433.65,0.00026,2]
[339770987,1727975443280,-1450.0,0.00026,2]
[339770988,1727975443290,-150.0,0.00026,14]
[339770989,1727975443299,-515.55097625,0.0002604,2]
[339770990,1727975443308,-150.0,0.00026063,4]
[339770991,1727975443317,-150.0,0.00026063,4]
[339770992,1727975443327,-150.0,0.00026063,4]
[339770993,1727975443336,-150.0,0.00026063,4]
[339770994,1727975443346,-754.03,0.00026163,2]
[339770995,1727975443355,-152.0,0.00026285,8]
[339770996,1727975443365,-291.92481207,0.00026397,2]
[339770997,1727975443374,-25986.07056691,0.000264,2]
[339770998,1727975443384,-150.0,0.00026421,2]
[339770999,1727975443393,-1397.268,0.00026421,2]
[339771000,1727975443403,-150.0,0.00026477,4]
[339771001,1727975443412,-158.59352518,0.00026481,2]
[339771002,1727975443425,-150.0,0.000265,14]
[339771003,1727975443434,-150.0,0.00026546,4]
[339771004,1727975443443,-150.0,0.00026642,4]
[339771005,1727975443453,-200.0,0.000267,11]
[339771006,1727975443462,-311.388129,0.00026707,120]
[339771007,1727975443472,-162.89,0.00026712,2]
[339771008,1727975443481,-3000.0,0.000268,2]
[339771009,1727975443490,-150.0,0.0002689,4]
[339771010,1727975443500,-169.27,0.00027,2]
[339771011,1727975443510,-250.00499417,0.00027,10]
[339771012,1727975443519,-11094.65646144,0.00027,2]
[339771013,1727975443529,-407.9452938,0.00027,2]
[339771014,1727975443538,-480.27736356,0.00027,2]
[339771015,1727975443548,-68432.50591467,0.00027,120]
[339771016,1727975443557,-151.0,0.00027,7]
[339771017,1727975443566,-151.0,0.00027,7]
[339771018,1727975443576,-2000.0,0.00027,2]
[339771019,1727975443586,-150.0,0.00027,15]
[339771020,1727975443596,-2007.025927,0.0002701,2]
[339771021,1727975443606,-150.0,0.00027028,4]
[339771022,1727975443615,-372.27,0.00027064,2]
[339771023,1727975443625,-1004.62999336,0.00027095,2]
[339771024,1727975443635,-3469.75,0.00027123,2]
[339771025,1727975443644,-152.0,0.00027167,9]
[339771026,1727975443654,-500.0,0.00027174,2]
[339771027,1727975443664,-500.0,0.00027183,2]
[339771028,1727975443674,-500.0,0.00027191,2]
[339771029,1727975443684,-500.0,0.000272,2]
[339771030,1727975443693,-500.0,0.00027209,2]
[339771031,1727975443702,-500.0,0.00027218,2]
[339771032,1727975443711,-150.0,0.00027221,4]
[339771033,1727975443721,-500.0,0.00027227,2]
[339771034,1727975443731,-500.0,0.00027235,2]
[339771035,1727975443740,-197.40425727,0.00027244,2]
[339771036,1727975443753,-302.59574273,0.00027244,2]
[339771037,1727975443763,-500.0,0.00027253,2]
[339771038,1727975443772,-500.0,0.00027262,2]
[339771039,1727975443782,-150.0,0.00027304,4]
[339771040,1727975443792,-39095.9293039,0.00027375,2]
[339771041,1727975443803,-187532.46424366,0.00027375,2]
[339771042,1727975443813,-1500.0,0.00027397,2]
[339771043,1727975443822,-1000.0,0.00027397,30]
[339771044,1727975443832,-150.0,0.00027397,2]
[339771045,1727975443841,-9093.5,0.00027397,10]
[339771046,1727975443850,-7577.91,0.00027397,10]
[339771047,1727975443860,-6314.93,0.00027397,10]
[339771048,1727975443869,-497.0,0.000274,2]
[339771049,1727975443878,-987.16644271,0.000274,2]
[339771050,1727975443887,-500.0,0.000274,2]
[339771051,1727975443897,-325.0,0.000274,2]
[339771052,1727975443906,-200.0,0.000274,2]
[339771053,1727975443916,-1000.0,0.00027447,30]
[339771054,1727975443928,-1000.0,0.00027497,30]
[339771055,1727975443937,-190.30051158,0.000275,2]
[339771056,1727975443947,-13330.36525071,0.000275,2]
[339771057,1727975443956,-150.0,0.000275,16]
[339771058,1727975443966,-150.0,0.00027511,7]
[339771059,1727975443975,-751.3317762,0.00027534,2]
[339771060,1727975443985,-1000.0,0.00027547,30]
[339771061,1727975443994,-500.0,0.00027565,2]
[339771062,1727975444272,-1000.0,0.00027597,30]
[339771063,1727975444282,-1000.0,0.00027646,30]
[339771064,1727975444292,-1000.0,0.00027696,30]
[339771065,1727975444301,-200.0,0.000277,12]
[339771066,1727975444314,-150.0,0.00027708,120]
[339771067,1727975444323,-150.0,0.00027718,7]
[339771068,1727975444333,-1000.0,0.00027746,30]
[339771069,1727975444342,-1000.0,0.00027796,30]
[339771070,1727975444352,-150.0,0.00027801,7]
[339771071,1727975444361,-1000.0,0.00027846,30]
[339771072,1727975444371,-500.0,0.00027877,2]
[339771073,1727975444383,-1000.0,0.00027895,30]
[339771074,1727975444392,-1000.0,0.00027945,30]
[339771075,1727975444402,-4526.77539102,0.00027964,2]
[339771076,1727975444412,-150.0,0.00027994,7]
[339771077,1727975444421,-1000.0,0.00027995,30]
[339771078,1727975444430,-3357.69716295,0.00028,2]
[339771079,1727975444439,-900.0,0.00028,80]
[339771080,1727975444449,-24876.26256352,0.00028,2]
[339771081,1727975444459,-497.52525127,0.00028,2]
[339771082,1727975444469,-1500.0,0.00028,2]
[339771083,1727975444478,-150.0,0.00028,16]
[339771084,1727975444488,-1000.0,0.00028045,30]
[339771085,1727975444498,-152.0,0.00028048,10]
[339771086,1727975444507,-1000.0,0.00028095,30]
[339771087,1727975444517,-150.0,0.00028132,7]
[339771088,1727975444526,-1000.0,0.00028144,30]
[339771089,1727975444536,-1000.0,0.00028194,30]
[339771090,1727975444546,-1000.0,0.00028244,30]
[339771091,1727975444557,-1000.0,0.00028294,30]
[339771092,1727975444566,-1000.0,0.00028344,30]
[339771093,1727975444576,-150.0,0.0002838,7]
[339771094,1727975444585,-1000.0,0.00028394,30]
[339771095,1727975444595,-1000.0,0.00028443,30]
[339771096,1727975444605,-150.0,0.00028476,7]
[339771097,1727975444614,-1000.0,0.00028493,30]
[339771098,1727975444623,-217.49,0.00028493,2]
[339771099,1727975444632,-150.0,0.000285,17]
[339771100,1727975444642,-1000.0,0.00028543,30]
[339771101,1727975444652,-150.0,0.00028545,7]
[339771102,1727975444662,-1000.0,0.00028593,30]
[339771103,1727975444672,-1000.0,0.00028643,30]
[339771104,1727975444681,-1000.0,0.00028692,30]
[339771105,1727975444691,-200.0,0.000287,13]
[339771106,1727975444700,-1000.0,0.00028742,30]
[339771107,1727975444710,-3313.03,0.00028767,120]
[339771108,1727975444719,-3313.03,0.00028767,120]
[339771109,1727975444729,-3313.03,0.00028767,120]
[339771110,1727975444738,-3313.03,0.00028767,120]
[339771111,1727975444747,-3313.03,0.00028767,120]
[339771112,1727975444757,-3313.03,0.00028767,120]
[339771113,1727975444766,-3313.03,0.00028767,120]
[339771114,1727975444774,-3313.03,0.00028767,120]
[339771115,1727975444783,-3313.03,0.00028767,120]
[339771116,1727975444792,-3313.03,0.00028767,120]
[339771117,1727975444802,-3313.03,0.00028767,120]
[339771118,1727975444811,-3313.03,0.00028767,120]
[339771119,1727975444821,-3313.03,0.00028767,120]
[339771120,1727975444830,-3313.03,0.00028767,120]
[339771121,1727975444840,-3313.03,0.00028767,120]
[339771122,1727975444850,-3313.03,0.00028767,120]
[339771123,1727975444859,-3313.03,0.00028767,120]
[339771124,1727975444869,-3313.03,0.00028767,120]
[339771125,1727975444878,-3313.03,0.00028767,120]
[339771126,1727975444888,-3313.03,0.00028767,120]
[339771127,1727975444897,-3313.03,0.00028767,120]
[339771128,1727975444907,-3313.03,0.00028767,120]
[339771129,1727975444916,-3313.03,0.00028767,120]
[339771130,1727975444926,-3313.04826616,0.00028767,120]
[339771131,1727975444936,-500.0,0.00028769,2]
[339771132,1727975444945,-500.0,0.00028788,2]
[339771133,1727975444955,-1000.0,0.00028792,30]
[339771134,1727975444965,-500.0,0.00028807,2]
[339771135,1727975444974,-500.0,0.00028818,2]
[339771136,1727975444984,-636.99629125,0.0002882,2]
[339771137,1727975444993,-500.0,0.00028826,2]
[339771138,1727975445002,-500.0,0.0002883,2]
[339771139,1727975445011,-500.0,0.00028836,2]
[339771140,1727975445021,-1000.0,0.00028842,30]
[339771141,1727975445030,-500.0,0.00028871,2]
[339771142,1727975445039,-1000.0,0.00028892,30]
[339771143,1727975445049,-152.0,0.0002893,11]
[339771144,1727975445058,-1000.0,0.00028941,30]
[339771145,1727975445067,-150.0,0.00028959,7]
[339771146,1727975445076,-222.47998378,0.00028959,7]
[339771147,1727975445085,-150.0,0.00028959,7]
[339771148,1727975445095,-150.0,0.00028959,7]
[339771149,1727975445104,-151.0,0.00028967,7]
[339771150,1727975445113,-151.0,0.00028967,7]
[339771151,1727975445124,-340.965991,0.00028967,7]
[339771152,1727975445134,-340.965991,0.00028967,7]
[339771153,1727975445143,-151.0,0.00028967,7]
[339771154,1727975445153,-151.0,0.00028967,7]
[339771155,1727975445162,-151.0,0.00028967,7]
[339771156,1727975445172,-151.0,0.00028967,7]
[339771157,1727975445181,-273.228038,0.00028967,7]
[339771158,1727975445191,-273.228038,0.00028967,7]
[339771159,1727975445201,-151.095663,0.00028967,7]
[339771160,1727975445210,-151.0,0.00028967,7]
[339771161,1727975445219,-291.811454,0.00028967,7]
[339771162,1727975445229,-151.0,0.00028967,7]
[339771163,1727975445239,-291.811454,0.00028967,7]
[339771164,1727975445248,-151.0,0.00028967,7]
[339771165,1727975445258,-151.129172,0.00028967,7]
[339771166,1727975445267,-151.0,0.00028967,7]
[339771167,1727975445276,-151.0,0.00028967,7]
[339771168,1727975445285,-151.0,0.00028967,7]
[339771169,1727975445296,-411.542954,0.00028967,7]
[339771170,1727975445305,-411.542954,0.00028967,7]
[339771171,1727975445314,-151.0,0.00028967,7]
[339771172,1727975445324,-167.50478,0.00028967,7]
[339771173,1727975445333,-167.50478,0.00028967,7]
[339771174,1727975445345,-151.0,0.00028967,7]
[339771175,1727975445355,-151.0,0.00028967,7]
[339771176,1727975445365,-151.0,0.00028967,7]
[339771177,1727975445374,-151.0,0.00028967,7]
[339771178,1727975445383,-500.0,0.00028972,2]
[339771179,1727975445393,-34818.11168403,0.00028972,20]
[339771180,1727975445406,-975.92965206,0.00028972,20]
[339771181,1727975445417,-1309.97,0.00028972,20]
[339771183,1727975445433,-10519.89863281,0.00028972,20]
[339771184,1727975445444,-2376.0900311,0.00028972,20]
[339771185,1727975445453,-5966.60797293,0.00028972,21]
[339771186,1727975445464,-1352.59422969,0.00028972,21]
[339771188,1727975445568,-1009.71667059,0.00028972,21]
[339771189,1727975445579,-1301.90749695,0.00028972,21]
[339771190,1727975445591,-3784.86407962,0.00028972,21]
[339771191,1727975445606,-6409.69574016,0.00028972,21]
[339771193,1727975445618,-561.97850452,0.00028972,21]
[339771196,1727975445629,-13505.16457707,0.00028972,21]
[339771198,1727975445643,-16107.47072847,0.00028972,21]
[339771200,1727975445653,-4302.74658191,0.00028972,22]
[339771202,1727975445666,-603.821392,0.00028972,22]
[339771205,1727975445684,-3755.24999999,0.00028972,22]
[339771207,1727975445695,-566.84138598,0.00028972,22]
[339771209,1727975445706,-1406.98951982,0.00028972,22]
[339771212,1727975445724,-3593.47834983,0.00028972,22]
[339771214,1727975445734,-1746.3324078,0.00028972,22]
[339771216,1727975445745,-4170.03465609,0.00028972,22]
[339771218,1727975445756,-10400.0,0.00028972,22]
[339771220,1727975445767,-901.97564511,0.00028972,22]
[339771223,1727975445777,-398.62975953,0.00028972,22]
[339771225,1727975445787,-2328.89999995,0.00028972,22]
[339771227,1727975445797,-922.18920229,0.00028972,22]
[339771229,1727975445808,-330.83626178,0.00028972,22]
[339771231,1727975445818,-2946.68335152,0.00028972,22]
[339771233,1727975445831,-1399.79399091,0.00028972,22]
[339771236,1727975445843,-1421.1731695,0.00028972,22]
[339771238,1727975445854,-300.060222,0.00028972,22]
[339771249,1727975446413,-150.0,0.00017415,2]
[339771250,1727975446424,-150.0,0.00017881,2]
[339771251,1727975446433,-150.0,0.00018346,2]
[339771252,1727975446442,-150.0,0.00018811,2]
[339771253,1727975446452,-150.0,0.00019276,2]
[339771254,1727975446462,-150.0,0.00019741,2]
[339771255,1727975446472,-2500.0,0.0002,5]
[339771256,1727975446482,-498.14041674,0.00028972,22]
[339771257,1727975446494,-8006.12368725,0.00028972,22]
[339771258,1727975446503,-21692.98613596,0.00028972,23]
[339771259,1727975446514,-9414.28831025,0.00028972,23]
[339771260,1727975446530,-302.0,0.00028972,23]
[339771261,1727975446547,-2734.9,0.00028972,23]
[339771262,1727975446558,-415.19891996,0.00028972,23]
[339771263,1727975446570,-15440.62663383,0.00028972,23]
[339771264,1727975446579,-9780.67365912,0.00028972,24]
[339771265,1727975446590,-19282.30996736,0.00028972,24]
[339771266,1727975446601,-744.5,0.00028972,24]
[339771267,1727975446612,-20192.51637352,0.00028972,24]
[339771268,1727975446622,-2825.54385303,0.00028972,25]
[339771269,1727975446633,-1111.77976804,0.00028972,25]
[339771270,1727975446643,-900.0,0.00028972,25]
[339771271,1727975446707,-525.9100055,0.00028972,25]
[339771272,1727975446719,-9521.52102756,0.00028972,25]
[339771273,1727975446731,-1589.0206032,0.00028972,25]
[339771274,1727975446779,-11876.33293888,0.00028972,25]
[339771275,1727975447382,-150.0,0.00020207,2]
[339771276,1727975447391,-150.0,0.00020672,2]
[339771277,1727975447401,-150.0,0.00021137,2]
[339771278,1727975447410,-150.0,0.00021602,2]
[339771279,1727975447420,-150.0,0.00022067,2]
[339771280,1727975447435,-150.0,0.00022533,2]
[339771281,1727975447444,-150.0,0.00022998,2]
[339771282,1727975447459,-21649.89180379,0.00028972,25]
[339771283,1727975447468,-1000.0,0.00028972,30]
[339771284,1727975447477,-21895.03343849,0.00028972,30]
[339771285,1727975447486,-6875.8742316,0.00028972,2]
[339771286,1727975447495,-9637.70843235,0.00028972,90]
[339771287,1727975447505,-10073.73092889,0.00028972,120]
[339771288,1727975447514,-18032.61604234,0.00028972,30]
[339771289,1727975447523,-265.74091374,0.00028972,30]
[339771290,1727975447532,-210.51191933,0.00028972,30]
[339771291,1727975447542,-243.42785976,0.00028972,120]
[339771292,1727975447551,-12265.23451813,0.00028972,120]
[339771293,1727975447560,-1122.15826692,0.00028972,120]
[339771294,1727975447569,-261.05822144,0.00028972,120]
[339771295,1727975447578,-4808.31369696,0.00028972,120]
[339771296,1727975447588,-5000.0,0.00028972,34]
[339771297,1727975447597,-1059.47852546,0.00028972,120]
[339771298,1727975447606,-12000.0,0.00028972,32]
[339771299,1727975447615,-3061.23740891,0.00028972,120]
[339771300,1727975447625,-7447.40304931,0.00028972,35]
[339771301,1727975447634,-804.3668,0.00028972,30]
[339771302,1727975447644,-176.70059287,0.00028972,30]
[339771303,1727975447653,-199.3,0.00028972,30]
[339771304,1727975447663,-199.3,0.00028972,30]
[339771305,1727975447674,-219.251662,0.00028972,60]
[339771306,1727975447687,-183.55900004,0.00028972,30]
[339771307,1727975447699,-4437.81641388,0.00028972,120]
[339771308,1727975447708,-1113.37760188,0.00028972,30]
[339771309,1727975447717,-5877.2951342,0.00028972,30]
[339771310,1727975447726,-351.3568129,0.00028972,30]
[339771311,1727975447735,-151.20887588,0.00028972,120]
[339771312,1727975447745,-246.0,0.00028972,2]
[339771313,1727975447754,-3131.2523744,0.00028972,120]
[339771314,1727975447764,-66000.0,0.00028972,90]
[339771315,1727975447773,-370.97998355,0.00028972,2]
[339771316,1727975447782,-150.0,0.00028972,2]
[339771317,1727975447791,-194.0,0.00028972,30]
[339771318,1727975447800,-194.0,0.00028972,30]
[339771319,1727975447810,-194.0,0.00028972,30]
[339771320,1727975447821,-200.0,0.00028972,30]
[339771321,1727975447831,-188.0,0.00028972,30]
[339771322,1727975447844,-200.0,0.00028972,30]
[339771323,1727975447854,-188.0,0.00028972,30]
[339771324,1727975447866,-458.0,0.00028972,30]
[339771325,1727975447876,-574.14932983,0.00028972,2]
[339771326,1727975447885,-155.89614445,0.00028972,2]
[339771327,1727975447894,-6626.49996494,0.00028972,2]
[339771328,1727975447903,-1000.0,0.00028972,2]
[339771329,1727975447913,-300.0,0.00028972,2]
[339771330,1727975447928,-150.0,0.00028972,3]
[339771331,1727975447938,-10356.99277238,0.00028972,3]
[339771332,1727975447947,-1210.0,0.00028972,2]
[339771333,1727975447956,-340.99487032,0.00028972,2]
[339771334,1727975447965,-2942.97387095,0.00028972,2]
[339771335,1727975447976,-5470.77502175,0.00028972,2]
[339771336,1727975447985,-1487.99786869,0.00028972,2]
[339771337,1727975447995,-7221.76953925,0.00028972,2]
[339771338,1727975448004,-1007.95000085,0.00028972,2]
[339771339,1727975448014,-10522.05287384,0.00028972,2]
[339771340,1727975448024,-5075.75701858,0.00028972,2]
[339771341,1727975448033,-2675.58427493,0.00028972,2]
[339771342,1727975448042,-2403.29016582,0.00028972,2]
[339771343,1727975448052,-2622.00431831,0.00028972,2]
[339771344,1727975448061,-9980.27860212,0.00028972,2]
[339771345,1727975448071,-212.41704088,0.00028972,2]
[339771346,1727975448081,-3179.31602347,0.00028972,2]
[339771347,1727975448090,-1451.59106971,0.00028972,2]
[339771348,1727975448100,-22329.46850091,0.00028972,2]
[339771349,1727975448109,-7556.80166389,0.00028972,2]
[339771350,1727975448118,-1046.43997883,0.00028972,2]
[339771351,1727975448130,-5844.97667313,0.00028972,2]
[339771352,1727975448139,-851.88164617,0.00028972,2]
[339771353,1727975448149,-1023.6359199,0.00028972,2]
[339771354,1727975448159,-186.94140466,0.00028972,2]
[339771355,1727975448169,-9044.01264249,0.00028972,2]
[339771356,1727975448182,-1283.55123286,0.00028972,2]
[339771357,1727975448191,-4839.9645647,0.00028972,2]
[339771358,1727975448202,-290.70413487,0.00028972,2]
[339771359,1727975448216,-7548.0148402,0.00028972,2]
[339771360,1727975448230,-22288.85691946,0.00028972,2]
[339771361,1727975448242,-12567.45998043,0.00028972,2]
[339771362,1727975448254,-1881.68531906,0.00028972,2]
[339771363,1727975448264,-180.27301152,0.00028972,2]
[339771364,1727975448275,-14517.60624464,0.00028972,3]
[339771365,1727975448287,-5469.64317653,0.00028972,2]
[339771366,1727975448299,-643.0,0.00028972,2]
[339771367,1727975448311,-5194.26381671,0.00028972,3]
[339771368,1727975448323,-950.51335388,0.00028972,2]
[339771369,1727975448335,-28758.73822359,0.00028972,2]
[339771370,1727975448348,-7001.93061213,0.00028972,2]
[339771371,1727975448361,-561.42501512,0.00028972,2]
[339771372,1727975448374,-1799.881973,0.00028972,2]
[339771373,1727975448387,-3178.63072815,0.00028972,2]
[339771374,1727975448400,-171.89067242,0.00028972,2]
[339771375,1727975448413,-550.0,0.00028972,2]
[339771376,1727975448427,-1436.44563143,0.00028972,2]
[339771377,1727975448439,-987.79671041,0.00028972,2]
[339771378,1727975448451,-935.37698356,0.00028972,2]
[339771379,1727975448463,-10489.51943783,0.00028972,2]
[339771380,1727975448475,-14645.93696155,0.00028972,2]
[339771381,1727975448487,-170.24757785,0.00028972,2]
[339771382,1727975448501,-1248.97075189,0.00028972,4]
[339771383,1727975448513,-6000.0,0.00028972,2]
[339771384,1727975448525,-953.90540473,0.00028972,4]
[339771385,1727975448538,-1012.60517273,0.00028972,2]
[339771386,1727975448549,-4727.67040168,0.00028972,2]
[339771387,1727975448561,-551.92697874,0.00028972,2]
[339771388,1727975448573,-150.0,0.00028972,2]
[339771389,1727975448586,-18475.63880158,0.00028972,2]
[339771390,1727975448597,-12542.46085248,0.00028972,30]
[339771391,1727975448609,-613.95547115,0.00028972,2]
[339771392,1727975448622,-210.46823005,0.00028972,2]
[339771393,1727975448634,-440.56222789,0.00028972,2]
[339771394,1727975448647,-1046.01168951,0.00028972,2]
[339771395,1727975448658,-2500.0,0.00028972,2]
[339771396,1727975448671,-567.89448538,0.00028972,2]
[339771397,1727975448684,-2331.52041701,0.00028972,2]
[339771398,1727975448696,-528.30214567,0.00028972,2]
[339771399,1727975448709,-894.32340136,0.00028972,2]